[Event "Late-Titled-Tuesday-Blitz-January-30-2024"]
[Site "Chess.com"]
[Date "2024.01.30"]
[Round "6"]
[White "sari07"]
[Black "DraningWaterHi"]
[Result "1-0"]
[WhiteElo "2409"]
[BlackElo "2111"]
[TimeControl "180+1"]
[EndTime "15:06:41 PST"]
[Termination "sari07 won by checkmate"]

1. d4 {[%clk 0:02:58.9]} 1... Nf6 {[%clk 0:02:59.9]} 2. Bf4 {[%clk 0:02:56.2]}
2... d5 {[%clk 0:02:59.6]} 3. Nc3 {[%clk 0:02:54.9]} 3... a6 {[%clk 0:02:57.1]}
4. e3 {[%clk 0:02:52.1]} 4... c5 {[%clk 0:02:55.5]} 5. Qd2 {[%clk 0:02:49.1]}
5... Nc6 {[%clk 0:02:53.8]} 6. O-O-O {[%clk 0:02:47.7]} 6... e6 {[%clk
0:02:51.8]} 7. f3 {[%clk 0:02:41.6]} 7... Bd6 {[%clk 0:02:49]} 8. dxc5 {[%clk
0:02:40.7]} 8... Bxc5 {[%clk 0:02:46.4]} 9. Bd3 {[%clk 0:02:27.6]} 9... e5
{[%clk 0:02:42.9]} 10. Bg5 {[%clk 0:02:27.2]} 10... h6 {[%clk 0:02:42.2]} 11.
Bxf6 {[%clk 0:02:22.5]} 11... gxf6 {[%clk 0:02:43.1]} 12. Kb1 {[%clk 0:02:20.9]}
12... Be6 {[%clk 0:02:43.1]} 13. Nge2 {[%clk 0:02:03.8]} 13... Qd7 {[%clk
0:02:42.8]} 14. e4 {[%clk 0:02:03.5]} 14... d4 {[%clk 0:02:42.1]} 15. Nd5 {[%clk
0:02:03.1]} 15... Bxd5 {[%clk 0:02:39.5]} 16. exd5 {[%clk 0:02:04]} 16... Qxd5
{[%clk 0:02:40.1]} 17. Be4 {[%clk 0:01:59.5]} 17... Qe6 {[%clk 0:02:37.9]} 18.
Ng3 {[%clk 0:01:52.8]} 18... Ne7 {[%clk 0:02:33.7]} 19. Bxb7 {[%clk 0:01:43.3]}
19... Rb8 {[%clk 0:02:33.8]} 20. Be4 {[%clk 0:01:34.6]} 20... Bb4 {[%clk
0:02:33.2]} 21. Qd3 {[%clk 0:01:31.1]} 21... Bc3 {[%clk 0:02:32.8]} 22. b3
{[%clk 0:01:31.4]} 22... Qd6 {[%clk 0:02:32]} 23. Qxc3 {[%clk 0:01:28.6]} 23...
Qa3 {[%clk 0:02:23.7]} 24. Qc7 {[%clk 0:01:18.1]} 24... O-O {[%clk 0:01:14.1]}
25. Nh5 {[%clk 0:01:15.8]} 25... Rfc8 {[%clk 0:01:13.1]} 26. Nxf6+ {[%clk
0:01:15.6]} 26... Kg7 {[%clk 0:01:13.2]} 27. Nh5+ {[%clk 0:01:15.6]} 27... Kf8
{[%clk 0:01:12.9]} 28. Qxe5 {[%clk 0:01:10.9]} 28... d3 {[%clk 0:01:07.4]} 29.
Qg7+ {[%clk 0:01:00.6]} 29... Ke8 {[%clk 0:01:07.4]} 30. Nf6+ {[%clk 0:01:00.4]}
30... Kd8 {[%clk 0:01:07.8]} 31. Rxd3+ {[%clk 0:01:01]} 31... Kc7 {[%clk
0:01:08.1]} 32. Qxf7 {[%clk 0:00:57.3]} 32... Rf8 {[%clk 0:01:06.8]} 33. Rd7+
{[%clk 0:00:55.2]} 33... Kb6 {[%clk 0:01:06.4]} 34. Qe6+ {[%clk 0:00:47.7]}
34... Ka5 {[%clk 0:01:05]} 35. Rxe7 {[%clk 0:00:45.5]} 35... Rb6 {[%clk
0:01:02.8]} 36. Qe5+ {[%clk 0:00:40.8]} 36... Rb5 {[%clk 0:00:54.3]} 37. Qc7+
{[%clk 0:00:33.8]} 37... Kb4 {[%clk 0:00:54.4]} 38. Qd6+ {[%clk 0:00:23.6]}
38... Rc5 {[%clk 0:00:54]} 39. Re5 {[%clk 0:00:16.3]} 39... Rc8 {[%clk
0:00:52.6]} 40. Rxc5 {[%clk 0:00:14.8]} 40... Rxc5 {[%clk 0:00:53.5]} 41. Rd1
{[%clk 0:00:13.7]} 41... Ka5 {[%clk 0:00:51]} 42. Rd5 {[%clk 0:00:12.8]} 42...
Kb4 {[%clk 0:00:51.2]} 43. Qxc5# {[%clk 0:00:12.5]} 1-0

[Event "Late-Titled-Tuesday-Blitz-January-30-2024"]
[Site "Chess.com"]
[Date "2024.01.30"]
[Round "6"]
[White "rose107"]
[Black "RianKapriaga"]
[Result "0-1"]
[WhiteElo "2123"]
[BlackElo "2349"]
[TimeControl "180+1"]
[EndTime "15:06:42 PST"]
[Termination "RianKapriaga won on time"]

1. e4 {[%clk 0:03:00.9]} 1... c6 {[%clk 0:02:57.7]} 2. d4 {[%clk 0:03:00.2]}
2... d5 {[%clk 0:02:58.2]} 3. exd5 {[%clk 0:02:58.2]} 3... cxd5 {[%clk
0:02:58.1]} 4. c3 {[%clk 0:02:58.6]} 4... Nc6 {[%clk 0:02:57.9]} 5. Bd3 {[%clk
0:02:58.9]} 5... Qc7 {[%clk 0:02:57.8]} 6. Nf3 {[%clk 0:02:57.3]} 6... Nf6
{[%clk 0:02:56]} 7. O-O {[%clk 0:02:57.4]} 7... Bg4 {[%clk 0:02:54.3]} 8. Bg5
{[%clk 0:02:51.6]} 8... e6 {[%clk 0:02:53.2]} 9. h3 {[%clk 0:02:51.2]} 9... Bh5
{[%clk 0:02:52.3]} 10. g4 {[%clk 0:02:44.1]} 10... Bg6 {[%clk 0:02:51.3]} 11.
Bxg6 {[%clk 0:02:44.2]} 11... hxg6 {[%clk 0:02:51.1]} 12. Kg2 {[%clk 0:02:37.7]}
12... Bd6 {[%clk 0:02:42.8]} 13. Nbd2 {[%clk 0:02:33.8]} 13... O-O-O {[%clk
0:02:42.1]} 14. b4 {[%clk 0:02:33.9]} 14... Kb8 {[%clk 0:02:37.2]} 15. b5 {[%clk
0:02:33.6]} 15... Na5 {[%clk 0:02:36.3]} 16. c4 {[%clk 0:02:18.7]} 16... dxc4
{[%clk 0:02:34]} 17. Rc1 {[%clk 0:02:18.1]} 17... Bf4 {[%clk 0:02:31]} 18. Bxf6
{[%clk 0:01:25.6]} 18... gxf6 {[%clk 0:02:27.1]} 19. Ne4 {[%clk 0:01:19.5]}
19... Bxc1 {[%clk 0:02:20.9]} 20. Qxc1 {[%clk 0:01:18.4]} 20... f5 {[%clk
0:02:20.2]} 21. Nc5 {[%clk 0:01:16.5]} 21... fxg4 {[%clk 0:02:17.3]} 22. hxg4
{[%clk 0:01:15]} 22... Rxd4 {[%clk 0:02:05.5]} 23. Nxd4 {[%clk 0:01:09]} 23...
Qxc5 {[%clk 0:01:59.4]} 24. Qf4+ {[%clk 0:01:01.7]} 24... e5 {[%clk 0:01:58.8]}
25. Qf6 {[%clk 0:01:00.6]} 25... Rc8 {[%clk 0:01:46]} 26. Nf3 {[%clk 0:00:58.7]}
26... Qd5 {[%clk 0:01:32.3]} 27. Re1 {[%clk 0:00:49.9]} 27... c3 {[%clk
0:01:29.3]} 28. Rxe5 {[%clk 0:00:49.3]} 28... Qd7 {[%clk 0:01:20]} 29. Qf4
{[%clk 0:00:41]} 29... Ka8 {[%clk 0:01:07.7]} 30. Qa4 {[%clk 0:00:08]} 30... c2
{[%clk 0:01:03.3]} 31. Re1 {[%clk 0:00:02.9]} 31... c1=Q {[%clk 0:00:53.8]} 32.
Qxa5 {[%clk 0:00:02.6]} 32... Qxg4+ {[%clk 0:00:51.3]} 33. Kh2 {[%clk
0:00:02.2]} 33... Rh8+ {[%clk 0:00:49.8]} 0-1

[Event "Late-Titled-Tuesday-Blitz-January-30-2024"]
[Site "Chess.com"]
[Date "2024.01.30"]
[Round "6"]
[White "Russian_berezka"]
[Black "Sokoloco"]
[Result "0-1"]
[WhiteElo "2586"]
[BlackElo "2761"]
[TimeControl "180+1"]
[EndTime "15:06:44 PST"]
[Termination "Sokoloco won by checkmate"]

1. e4 {[%clk 0:02:58.6]} 1... d6 {[%clk 0:02:59.6]} 2. f4 {[%clk 0:02:55.6]}
2... Nf6 {[%clk 0:02:41]} 3. Nc3 {[%clk 0:02:54.6]} 3... Nc6 {[%clk 0:02:38.6]}
4. Nf3 {[%clk 0:02:54.5]} 4... Bg4 {[%clk 0:02:38.9]} 5. Bb5 {[%clk 0:02:53.8]}
5... e5 {[%clk 0:02:34.1]} 6. d4 {[%clk 0:02:46.8]} 6... Bxf3 {[%clk 0:02:13.8]}
7. Qxf3 {[%clk 0:02:43.5]} 7... exd4 {[%clk 0:02:12.9]} 8. e5 {[%clk 0:02:43.6]}
8... Nd7 {[%clk 0:01:36.2]} 9. Ne2 {[%clk 0:02:41.6]} 9... dxe5 {[%clk
0:01:35.9]} 10. Bxc6 {[%clk 0:02:38.6]} 10... bxc6 {[%clk 0:01:35.1]} 11. Qxc6
{[%clk 0:02:36.7]} 11... Bd6 {[%clk 0:01:30.6]} 12. O-O {[%clk 0:02:24.9]} 12...
O-O {[%clk 0:01:29.2]} 13. Ng3 {[%clk 0:02:17.2]} 13... Nf6 {[%clk 0:01:13.4]}
14. fxe5 {[%clk 0:02:03.2]} 14... Bxe5 {[%clk 0:01:14.3]} 15. Bf4 {[%clk
0:02:03.2]} 15... Qd6 {[%clk 0:01:00.4]} 16. Qxd6 {[%clk 0:01:53.7]} 16... cxd6
{[%clk 0:01:01.3]} 17. Nf5 {[%clk 0:01:51.7]} 17... Rad8 {[%clk 0:00:39]} 18.
Rae1 {[%clk 0:01:42.1]} 18... Rfe8 {[%clk 0:00:38.2]} 19. Bg5 {[%clk 0:01:34.5]}
19... Re6 {[%clk 0:00:22.7]} 20. h3 {[%clk 0:01:17]} 20... Rde8 {[%clk
0:00:22.6]} 21. Rd1 {[%clk 0:01:16.9]} 21... Ne4 {[%clk 0:00:13.4]} 22. Bc1
{[%clk 0:01:13.7]} 22... Rc8 {[%clk 0:00:13.3]} 23. Nxd4 {[%clk 0:01:10.3]}
23... Bxd4+ {[%clk 0:00:14.2]} 24. Rxd4 {[%clk 0:01:10.3]} 24... Rxc2 {[%clk
0:00:15.1]} 25. Re1 {[%clk 0:01:02.5]} 25... Ng3 {[%clk 0:00:15.3]} 26. Bd2
{[%clk 0:00:44.3]} 26... Rxe1+ {[%clk 0:00:13.6]} 27. Bxe1 {[%clk 0:00:43]}
27... Ne2+ {[%clk 0:00:14.1]} 28. Kf2 {[%clk 0:00:41.1]} 28... Nxd4+ {[%clk
0:00:15]} 29. Ke3 {[%clk 0:00:42]} 29... Re2+ {[%clk 0:00:14.9]} 30. Kxd4 {[%clk
0:00:42]} 30... Rxe1 {[%clk 0:00:15.8]} 31. Kd5 {[%clk 0:00:41.8]} 31... Re2
{[%clk 0:00:16.1]} 32. b4 {[%clk 0:00:42]} 32... Rxg2 {[%clk 0:00:16.5]} 33. a4
{[%clk 0:00:41.7]} 33... Rg3 {[%clk 0:00:16.8]} 34. a5 {[%clk 0:00:42.6]} 34...
Rxh3 {[%clk 0:00:17.4]} 35. Kxd6 {[%clk 0:00:41.3]} 35... Rb3 {[%clk 0:00:18]}
36. Kc5 {[%clk 0:00:41.7]} 36... h5 {[%clk 0:00:18.5]} 37. b5 {[%clk 0:00:41.6]}
37... h4 {[%clk 0:00:18.6]} 38. b6 {[%clk 0:00:42.5]} 38... axb6+ {[%clk
0:00:18.9]} 39. axb6 {[%clk 0:00:43.4]} 39... h3 {[%clk 0:00:19.1]} 40. Kc6
{[%clk 0:00:44]} 40... h2 {[%clk 0:00:19.7]} 41. Kd7 {[%clk 0:00:43.9]} 41...
h1=Q {[%clk 0:00:20.1]} 42. b7 {[%clk 0:00:44.8]} 42... Qd5+ {[%clk 0:00:20.4]}
43. Ke8 {[%clk 0:00:44.4]} 43... Re3# {[%clk 0:00:19.6]} 0-1

[Event "Late-Titled-Tuesday-Blitz-January-30-2024"]
[Site "Chess.com"]
[Date "2024.01.30"]
[Round "6"]
[White "Binary010"]
[Black "carloseduar100"]
[Result "1-0"]
[WhiteElo "2893"]
[BlackElo "2327"]
[TimeControl "180+1"]
[EndTime "15:06:46 PST"]
[Termination "Binary010 won by checkmate"]

1. c4 {[%clk 0:03:00.9]} 1... e6 {[%clk 0:02:59.1]} 2. g3 {[%clk 0:02:59.7]}
2... d5 {[%clk 0:02:58.9]} 3. Bg2 {[%clk 0:03:00.3]} 3... Nf6 {[%clk 0:02:58.6]}
4. Nf3 {[%clk 0:03:01]} 4... Nbd7 {[%clk 0:02:52.8]} 5. d4 {[%clk 0:02:58.7]}
5... Bd6 {[%clk 0:02:52.4]} 6. O-O {[%clk 0:02:58.3]} 6... c6 {[%clk 0:02:52.5]}
7. Qc2 {[%clk 0:02:53.6]} 7... Qe7 {[%clk 0:02:50.8]} 8. Nc3 {[%clk 0:02:51.9]}
8... a6 {[%clk 0:02:50.3]} 9. b3 {[%clk 0:02:44]} 9... e5 {[%clk 0:02:42.6]} 10.
cxd5 {[%clk 0:02:41.5]} 10... cxd5 {[%clk 0:02:42.5]} 11. dxe5 {[%clk
0:02:39.4]} 11... Nxe5 {[%clk 0:02:42.6]} 12. Nxe5 {[%clk 0:02:39.5]} 12... Bxe5
{[%clk 0:02:42.7]} 13. Bb2 {[%clk 0:02:36.6]} 13... Be6 {[%clk 0:02:24.9]} 14.
Rac1 {[%clk 0:02:32.3]} 14... O-O {[%clk 0:02:21.4]} 15. Na4 {[%clk 0:02:31.7]}
15... Bxb2 {[%clk 0:02:14.1]} 16. Qxb2 {[%clk 0:02:29.4]} 16... Rac8 {[%clk
0:02:11.9]} 17. e3 {[%clk 0:02:17.1]} 17... b5 {[%clk 0:02:09.2]} 18. Nc3 {[%clk
0:02:15.9]} 18... h6 {[%clk 0:02:09.1]} 19. Ne2 {[%clk 0:02:15.5]} 19... Bf5
{[%clk 0:01:54]} 20. Nd4 {[%clk 0:02:13.1]} 20... Be4 {[%clk 0:01:49.8]} 21. Bh3
{[%clk 0:02:13.1]} 21... Rxc1 {[%clk 0:01:48.9]} 22. Rxc1 {[%clk 0:02:14]} 22...
Qe5 {[%clk 0:01:42.8]} 23. Qe2 {[%clk 0:01:52]} 23... Re8 {[%clk 0:01:33.6]} 24.
a4 {[%clk 0:01:42.2]} 24... Bg6 {[%clk 0:01:28.5]} 25. Nc6 {[%clk 0:01:29.9]}
25... Qe4 {[%clk 0:01:01.6]} 26. Bg2 {[%clk 0:01:24.1]} 26... Qe6 {[%clk
0:00:53.1]} 27. axb5 {[%clk 0:01:22.3]} 27... axb5 {[%clk 0:00:53.2]} 28. Nd4
{[%clk 0:01:18.3]} 28... Qa6 {[%clk 0:00:47.3]} 29. Qxb5 {[%clk 0:01:17.4]}
29... Qa3 {[%clk 0:00:36.4]} 30. Qc5 {[%clk 0:01:12.8]} 30... Qa2 {[%clk
0:00:33.3]} 31. Qc3 {[%clk 0:01:07.4]} 31... Ne4 {[%clk 0:00:30]} 32. Bxe4
{[%clk 0:01:04.2]} 32... Bxe4 {[%clk 0:00:18.8]} 33. Ra1 {[%clk 0:01:04.1]}
33... Qb1+ {[%clk 0:00:16.2]} 34. Rxb1 {[%clk 0:01:04]} 34... Bxb1 {[%clk
0:00:17.1]} 35. b4 {[%clk 0:01:00.9]} 35... Be4 {[%clk 0:00:11.6]} 36. b5 {[%clk
0:01:01.1]} 36... g5 {[%clk 0:00:11.5]} 37. f3 {[%clk 0:01:00.9]} 37... Bg6
{[%clk 0:00:09.7]} 38. b6 {[%clk 0:01:01.3]} 38... Rb8 {[%clk 0:00:09.1]} 39.
Qc7 {[%clk 0:01:01]} 39... Ra8 {[%clk 0:00:09.3]} 40. b7 {[%clk 0:01:01.2]}
40... Ra1+ {[%clk 0:00:09.7]} 41. Kf2 {[%clk 0:01:01.5]} 41... Bd3 {[%clk
0:00:08.7]} 42. b8=Q+ {[%clk 0:01:01.2]} 42... Kg7 {[%clk 0:00:09.6]} 43. Qe5+
{[%clk 0:01:01.3]} 43... Kg6 {[%clk 0:00:09.8]} 44. Qg8+ {[%clk 0:01:00.4]}
44... Kh5 {[%clk 0:00:09.9]} 45. g4+ {[%clk 0:01:00.6]} 45... Kh4 {[%clk
0:00:10]} 46. Qg3# {[%clk 0:01:01.4]} 1-0

[Event "Late-Titled-Tuesday-Blitz-January-30-2024"]
[Site "Chess.com"]
[Date "2024.01.30"]
[Round "6"]
[White "dropstoneDP"]
[Black "brm72"]
[Result "1-0"]
[WhiteElo "3043"]
[BlackElo "2690"]
[TimeControl "180+1"]
[EndTime "15:06:48 PST"]
[Termination "dropstoneDP won by resignation"]

1. e4 {[%clk 0:02:28.7]} 1... c6 {[%clk 0:02:59.9]} 2. d4 {[%clk 0:02:28.3]}
2... d5 {[%clk 0:03:00.5]} 3. Nd2 {[%clk 0:02:28.5]} 3... dxe4 {[%clk
0:03:00.7]} 4. Nxe4 {[%clk 0:02:29.4]} 4... Nf6 {[%clk 0:03:01.6]} 5. Nxf6+
{[%clk 0:02:29]} 5... exf6 {[%clk 0:03:02.5]} 6. c3 {[%clk 0:02:29]} 6... Bd6
{[%clk 0:03:02.9]} 7. Bd3 {[%clk 0:02:29.4]} 7... O-O {[%clk 0:03:03.6]} 8. Ne2
{[%clk 0:02:29.8]} 8... Re8 {[%clk 0:03:03.7]} 9. Qc2 {[%clk 0:02:30]} 9... h5
{[%clk 0:03:03.5]} 10. O-O {[%clk 0:02:29.8]} 10... Qc7 {[%clk 0:03:00.3]} 11.
f4 {[%clk 0:02:03.3]} 11... Bg4 {[%clk 0:02:41.6]} 12. Ng3 {[%clk 0:01:59.8]}
12... c5 {[%clk 0:02:26.3]} 13. h3 {[%clk 0:01:57.7]} 13... Bd7 {[%clk
0:01:46.4]} 14. Nxh5 {[%clk 0:01:52.7]} 14... cxd4 {[%clk 0:01:46.4]} 15. Qf2
{[%clk 0:01:47.7]} 15... Qc5 {[%clk 0:01:15.8]} 16. Qh4 {[%clk 0:01:26.2]} 16...
dxc3+ {[%clk 0:01:15.7]} 17. Kh1 {[%clk 0:01:26.2]} 17... Bf5 {[%clk 0:01:14.6]}
18. Qg3 {[%clk 0:01:19.5]} 18... Bg6 {[%clk 0:00:53.7]} 19. Bxg6 {[%clk
0:01:18.1]} 19... fxg6 {[%clk 0:00:54.6]} 20. Qxg6 {[%clk 0:01:18.1]} 20... Re7
{[%clk 0:00:55.2]} 21. Nxf6+ {[%clk 0:01:17.7]} 21... Kf8 {[%clk 0:00:55.6]} 22.
Nh7+ {[%clk 0:01:15.5]} 22... Kg8 {[%clk 0:00:55.7]} 23. Ng5 {[%clk 0:01:16.1]}
23... Kf8 {[%clk 0:00:22]} 24. bxc3 {[%clk 0:01:07.4]} 24... Nd7 {[%clk
0:00:18.8]} 25. Be3 {[%clk 0:01:04.9]} 25... Qc6 {[%clk 0:00:15.3]} 26. Bd4
{[%clk 0:01:03.5]} 26... Bc5 {[%clk 0:00:10.9]} 27. Qh7 {[%clk 0:01:02.7]} 27...
Ke8 {[%clk 0:00:07.8]} 28. Qg8+ {[%clk 0:01:01]} 28... Nf8 {[%clk 0:00:07.5]}
29. Bxg7 {[%clk 0:00:58.5]} 29... Re2 {[%clk 0:00:05]} 30. Qf7+ {[%clk
0:00:54.9]} 30... Kd8 {[%clk 0:00:04.4]} 31. Rad1+ {[%clk 0:00:48.4]} 31... Kc8
{[%clk 0:00:04.6]} 32. Rd5 {[%clk 0:00:46.6]} 32... Nd7 {[%clk 0:00:03.4]} 33.
Rfd1 {[%clk 0:00:42.8]} 33... a6 {[%clk 0:00:03.2]} 34. Qxd7+ {[%clk 0:00:42.5]}
34... Qxd7 {[%clk 0:00:03.9]} 35. Rxd7 {[%clk 0:00:43.4]} 1-0

[Event "Late-Titled-Tuesday-Blitz-January-30-2024"]
[Site "Chess.com"]
[Date "2024.01.30"]
[Round "6"]
[White "lupta_robin"]
[Black "GMRafpig"]
[Result "1/2-1/2"]
[WhiteElo "2540"]
[BlackElo "2747"]
[TimeControl "180+1"]
[EndTime "15:06:49 PST"]
[Termination "Game drawn by repetition"]

1. c4 {[%clk 0:03:00.9]} 1... Nf6 {[%clk 0:02:59.7]} 2. Nc3 {[%clk 0:03:00.9]}
2... e5 {[%clk 0:02:55.1]} 3. Nf3 {[%clk 0:03:00.8]} 3... Nc6 {[%clk 0:02:53.7]}
4. d4 {[%clk 0:03:00.1]} 4... exd4 {[%clk 0:02:52.2]} 5. Nxd4 {[%clk 0:03:00.4]}
5... Bb4 {[%clk 0:02:51.3]} 6. g3 {[%clk 0:02:25.7]} 6... O-O {[%clk 0:02:29.6]}
7. Bg2 {[%clk 0:02:25.6]} 7... Ne5 {[%clk 0:02:17]} 8. Qb3 {[%clk 0:02:22.3]}
8... Bc5 {[%clk 0:02:16.9]} 9. Nf3 {[%clk 0:02:14.9]} 9... Nxf3+ {[%clk
0:02:02.1]} 10. Bxf3 {[%clk 0:02:14.6]} 10... d6 {[%clk 0:01:57.5]} 11. Bg5
{[%clk 0:02:11.9]} 11... h6 {[%clk 0:01:52.5]} 12. Bxf6 {[%clk 0:02:11.2]} 12...
Qxf6 {[%clk 0:01:53.2]} 13. Ne4 {[%clk 0:02:05.6]} 13... Qe5 {[%clk 0:01:50.5]}
14. Nxc5 {[%clk 0:02:01.1]} 14... Qxc5 {[%clk 0:01:50.1]} 15. O-O {[%clk
0:01:55.4]} 15... a5 {[%clk 0:01:44]} 16. Rfd1 {[%clk 0:01:52.8]} 16... Be6
{[%clk 0:01:37.8]} 17. Rac1 {[%clk 0:01:51]} 17... Rab8 {[%clk 0:01:31.7]} 18.
Qc3 {[%clk 0:01:47.6]} 18... b6 {[%clk 0:01:21.6]} 19. h4 {[%clk 0:01:41.1]}
19... Rfe8 {[%clk 0:01:19.9]} 20. e3 {[%clk 0:01:40.8]} 20... Qb4 {[%clk
0:01:15.5]} 21. Qxb4 {[%clk 0:01:28.8]} 21... axb4 {[%clk 0:01:15.4]} 22. Bc6
{[%clk 0:01:19.4]} 22... Red8 {[%clk 0:01:10.8]} 23. Rd3 {[%clk 0:01:18.4]}
23... Bd7 {[%clk 0:01:10.4]} 24. Bxd7 {[%clk 0:01:13.2]} 24... Rxd7 {[%clk
0:01:11.3]} 25. a3 {[%clk 0:00:59.2]} 25... bxa3 {[%clk 0:01:09.1]} 26. Rxa3
{[%clk 0:01:00.1]} 26... Kf8 {[%clk 0:01:08.8]} 27. Kg2 {[%clk 0:00:52.2]} 27...
Ke7 {[%clk 0:01:07.6]} 28. Ra7 {[%clk 0:00:49.8]} 28... c5 {[%clk 0:01:01.7]}
29. Rxd7+ {[%clk 0:00:43.4]} 29... Kxd7 {[%clk 0:01:02.6]} 30. Ra1 {[%clk
0:00:43.6]} 30... b5 {[%clk 0:01:02.3]} 31. cxb5 {[%clk 0:00:32.3]} 31... Rxb5
{[%clk 0:01:02.1]} 32. Ra2 {[%clk 0:00:33]} 32... h5 {[%clk 0:01:00.6]} 33. Kf3
{[%clk 0:00:33.3]} 33... Rb4 {[%clk 0:00:57.9]} 34. Ke2 {[%clk 0:00:33.2]} 34...
Ke6 {[%clk 0:00:57.8]} 35. Kd3 {[%clk 0:00:33.4]} 35... g6 {[%clk 0:00:54.9]}
36. Kc3 {[%clk 0:00:33.2]} 36... Rb7 {[%clk 0:00:52.3]} 37. b3 {[%clk
0:00:32.9]} 37... Kf5 {[%clk 0:00:50.9]} 38. f3 {[%clk 0:00:32.3]} 38... Ke5
{[%clk 0:00:49.6]} 39. e4 {[%clk 0:00:29.9]} 39... Ke6 {[%clk 0:00:44.2]} 40.
Ra6 {[%clk 0:00:26]} 40... Ke5 {[%clk 0:00:42.9]} 41. Kc4 {[%clk 0:00:24]} 41...
Rb4+ {[%clk 0:00:42.9]} 42. Kc3 {[%clk 0:00:24]} 42... Rb7 {[%clk 0:00:43.6]}
43. Kc4 {[%clk 0:00:21.2]} 43... Rb4+ {[%clk 0:00:43.4]} 44. Kc3 {[%clk
0:00:21.7]} 44... Rb7 {[%clk 0:00:44.1]} 1/2-1/2

[Event "Late-Titled-Tuesday-Blitz-January-30-2024"]
[Site "Chess.com"]
[Date "2024.01.30"]
[Round "6"]
[White "Inepton_Fermion"]
[Black "Burgsvik"]
[Result "0-1"]
[WhiteElo "2389"]
[BlackElo "2289"]
[TimeControl "180+1"]
[EndTime "15:06:54 PST"]
[Termination "Burgsvik won on time"]

1. f3 {[%clk 0:03:00.9]} 1... c5 {[%clk 0:03:00.9]} 2. Kf2 {[%clk 0:03:00.7]}
2... d5 {[%clk 0:03:00.1]} 3. e3 {[%clk 0:03:01.3]} 3... e5 {[%clk 0:02:59.8]}
4. c4 {[%clk 0:03:00.6]} 4... d4 {[%clk 0:02:59.7]} 5. e4 {[%clk 0:03:01.1]}
5... Nc6 {[%clk 0:02:58.9]} 6. d3 {[%clk 0:03:01.4]} 6... f5 {[%clk 0:02:59]} 7.
g3 {[%clk 0:03:00.9]} 7... f4 {[%clk 0:02:59.2]} 8. Ne2 {[%clk 0:02:54.1]} 8...
g5 {[%clk 0:02:56.8]} 9. a3 {[%clk 0:02:39.6]} 9... h5 {[%clk 0:02:51.9]} 10.
Ke1 {[%clk 0:02:03.8]} 10... Qf6 {[%clk 0:02:49.3]} 11. Bg2 {[%clk 0:01:56.9]}
11... Bd6 {[%clk 0:02:46.4]} 12. Kd2 {[%clk 0:01:54.9]} 12... Nge7 {[%clk
0:02:43.4]} 13. Kc2 {[%clk 0:01:54.2]} 13... Ng6 {[%clk 0:02:43]} 14. Bd2 {[%clk
0:01:44.7]} 14... g4 {[%clk 0:02:42.2]} 15. gxf4 {[%clk 0:01:39.3]} 15... exf4
{[%clk 0:02:39]} 16. Qc1 {[%clk 0:01:31.7]} 16... Rf8 {[%clk 0:02:29.8]} 17. Rf1
{[%clk 0:01:29.9]} 17... h4 {[%clk 0:02:11.5]} 18. fxg4 {[%clk 0:01:02.5]} 18...
Bxg4 {[%clk 0:02:09.1]} 19. Bf3 {[%clk 0:01:00.2]} 19... Bxf3 {[%clk 0:01:57.6]}
20. Rxf3 {[%clk 0:01:00]} 20... Nce5 {[%clk 0:01:57.6]} 21. Rxf4 {[%clk
0:00:46.9]} 21... Nxf4 {[%clk 0:01:56.6]} 22. Nxf4 {[%clk 0:00:47.8]} 22...
O-O-O {[%clk 0:01:52.7]} 23. a4 {[%clk 0:00:30]} 23... Nf3 {[%clk 0:01:52.4]}
24. Nd5 {[%clk 0:00:28.1]} 24... Qe6 {[%clk 0:01:48.9]} 25. Kb3 {[%clk
0:00:15.6]} 25... Bxh2 {[%clk 0:01:41.3]} 26. Bg5 {[%clk 0:00:13.8]} 26... Nxg5
{[%clk 0:01:31.2]} 27. Qxg5 {[%clk 0:00:13.8]} 27... Bg3 {[%clk 0:01:31.2]} 28.
Nd2 {[%clk 0:00:12.4]} 28... Rg8 {[%clk 0:01:26.6]} 29. Qh5 {[%clk 0:00:10.5]}
29... Rh8 {[%clk 0:01:25.3]} 30. Qg5 {[%clk 0:00:10.5]} 30... Rdg8 {[%clk
0:01:23.5]} 31. Ne7+ {[%clk 0:00:11.1]} 31... Kb8 {[%clk 0:01:19.4]} 32. Nxg8
{[%clk 0:00:10.4]} 32... Rxg8 {[%clk 0:01:17.6]} 33. Qxc5 {[%clk 0:00:10.3]}
33... Qe5 {[%clk 0:01:11.1]} 34. Qxe5+ {[%clk 0:00:08.4]} 34... Bxe5 {[%clk
0:01:10.5]} 35. Nf3 {[%clk 0:00:08.5]} 35... Bg3 {[%clk 0:01:07.9]} 36. Nxd4
{[%clk 0:00:08.6]} 36... Rd8 {[%clk 0:01:07.2]} 37. Nf5 {[%clk 0:00:06.7]} 37...
Rxd3+ {[%clk 0:01:05.8]} 38. Kc2 {[%clk 0:00:07.4]} 38... Rf3 {[%clk 0:01:04.6]}
39. Nxg3 {[%clk 0:00:06.4]} 39... hxg3 {[%clk 0:01:04.4]} 40. Rg1 {[%clk
0:00:05.7]} 40... Kc7 {[%clk 0:01:04.4]} 41. b3 {[%clk 0:00:02.8]} 41... Kd6
{[%clk 0:01:04.1]} 42. Kb2 {[%clk 0:00:01.5]} 42... Ke5 {[%clk 0:01:04]} 43. Ka3
{[%clk 0:00:01.9]} 43... Kxe4 {[%clk 0:01:03.5]} 44. Kb4 {[%clk 0:00:02.4]}
44... Kf4 {[%clk 0:01:02.9]} 45. a5 {[%clk 0:00:01.9]} 45... Rf2 {[%clk
0:01:00.6]} 46. Kc5 {[%clk 0:00:01.5]} 46... g2 {[%clk 0:00:59.7]} 0-1